Cogmind - Beta 14 @@@ ROGUE MODE // 2024.12.17 @ 16:23:34 Player: abnormality Result: Destroyed by G-34 Mercenary with Small Laser Performance ------------- Evolutions (1) 500 Regions Visited (2) 400 Robots Destroyed (28) 140 Value Destroyed (784) 784 Prototype IDs (1) 20 Alien Tech Used (0) 0 Bonus (0) 0 TOTAL SCORE: 1844 Bonus ------- None Cogmind --------- Core Integrity 0/400 Matter 295/300 Energy 2/100 System Corruption 0% Temperature Cool (6) Movement Core (1400) Ox27 Location -9/Materials Parts ------- > --- POWER (1) -------- (None) > --- PROPULSION (2) --- (None) > --- UTILITY (4) ------ Huge Storage Unit ECM Suite > --- WEAPON (2) ------- (None) > --- INVENTORY (25) --- Carbon-fiber Leg Carbon-fiber Leg Large Storage Unit Improved Signal Interpreter Targeting Computer Improved Targeting Computer Melee Analysis Suite Shield Generator Peak State ------------ > --- POWER ------------ Ion Engine > --- PROPULSION ------- Carbon-fiber Leg Carbon-fiber Leg > --- UTILITY ---------- Large Storage Unit Improved Terrain Scanner ECM Suite Core Shielding > --- WEAPON ----------- Assault Rifle Heavy Assault Rifle > --- INVENTORY -------- Carbon-fiber Leg Titanium Leg Titanium Leg Large Storage Unit Improved Signal Interpreter Improved Targeting Computer Melee Analysis Suite Shield Generator [Rating: 18] Favorites ----------- Power Ion Engine Engine Ion Engine Propulsion Titanium Leg Leg Titanium Leg Utility Core Shielding Device ECM Suite Storage Large Storage Unit Processor Targeting Computer Protection Core Shielding Weapon Heavy Assault Rifle Energy Gun Medium Laser Energy Cannon Advanced Beam Cannon Ballistic Gun Heavy Assault Rifle Build | -11 -10 -9 ------- Run | Yrd Mat Mat Slots Evolved 2 | . . 2 Power . | . . . Propulsion . | . . . Utility 2 | . . 2 Weapon . | . . . Parts Attached 31 | 7 4 20 Power 4 | 1 1 2 Engine 4 | 1 1 2 Core . | . . . Reactor . | . . . Propulsion 7 | 2 . 5 Treads . | . . . Leg 7 | 2 . 5 Wheel . | . . . Hover . | . . . Flight . | . . . Utility 10 | 2 2 6 Device 3 | 1 . 2 Storage 4 | 1 1 2 Processor 1 | . . 1 Hackware . | . . . Protection 2 | . 1 1 Artifact . | . . . Weapon 10 | 2 1 7 Energy Gun 4 | 2 1 1 Energy Cannon 3 | . . 3 Ballistic Gun 3 | . . 3 Ballistic Cannon . | . . . Launcher . | . . . Special Weapon . | . . . Impact Weapon . | . . . Slashing Weapon . | . . . Piercing Weapon . | . . . Special Melee Weapon . | . . . Unidentified Prototypes 1 | . . 1 Parts Lost 16 | . 1 15 Power 3 | . . 3 Propulsion 4 | . . 4 Utility 1 | . . 1 Weapon 8 | . 1 7 Highest Loss Streak 5 | . 1 5 To Critical Strikes . | . . . Average Slot Usage (%) 93 | . 100 91 Engine 10 | . 14 9 Leg 22 | . 28 21 Device 12 | . 4 15 Storage 13 | . 14 13 Protection 10 | . 9 10 Energy Gun 10 | . 28 4 Energy Cannon 5 | . . 6 Ballistic Gun 6 | . . 9 Peak Build Rating 18 | 9 9 18 Average Rating 13 | 5 7 15 On Entrance 5 | . 9 8 Naked Turns . | . . . Heaviest Build 115 | 13 28 115 Greatest Support 34 | 20 20 34 Greatest Overweight (x) 27 | 3 1 27 Average Overweight (x) 1 | . . 1 Largest Inventory Capacity 25 | 8 15 25 Average Capacity 18 | 7 14 20 Most Carried 10 | 5 9 10 Average Carried 6 | 2 6 7 Final Capacity 25 | 8 15 25 Final Carried 8 | 2 8 8 Class Distribution -------------------- 100% | Mutant Dominant Class ---------------- Mutant | -10/Materials Mutant | -9/Materials Resources | -11 -10 -9 ----------- Run | Yrd Mat Mat Matter Collected 643 | 270 35 338 Remotely . | . . . Salvage Created 1046 | 122 139 785 Parts 68 | 16 10 42 Haulers Intercepted . | . . . Recyclers Shooed 3 | 1 . 2 Parts Field Recycled . | . . . Retrieved Matter . | . . . Parts Self-Destructed . | . . . Prevented . | . . . Kills | -11 -10 -9 ------- Run | Yrd Mat Mat Combat Hostiles Destroyed 20 | . 5 15 Guns 17 | . 5 12 Cannons 3 | . . 3 Classes Destroyed 8 | 2 2 4 Tunneler 3 | 3 . . Recycler 1 | 1 . . Operator 1 | . . 1 Watcher 3 | . . 3 Swarmer 3 | . 3 . Grunt 13 | . 2 11 Duelist 1 | . . 1 Sentry 3 | . . 3 Best Kill Streak 4 | 4 3 3 Combat Bots Only 3 | . 3 3 Max Kills in Single Turn 1 | 1 1 1 Gunslinging . | . . . Exploded . | . . . Melee . | . . . Uniques/NPCs Destroyed . | . . . Combat | -11 -10 -9 -------- Run | Yrd Mat Mat Hostile Shots Fired 233 | . 27 206 Missed 58 | . 5 53 Damage Taken 2272 | . 246 2026 Core 457 | . 50 407 Absorbed by Shields . | . . . Redirected to Shielding 50 | . 10 40 Core Remaining (%) 90 | 100 80 . Volleys Fired 97 | 11 10 76 Largest 2 | 2 2 2 Hottest 136 | 90 90 136 Shots Fired 176 | 22 20 134 Gun 143 | 22 20 101 Cannon 33 | . . 33 Launcher . | . . . Special . | . . . Kinetic 72 | . . 72 Thermal 88 | 11 15 62 Explosive . | . . . Electromagnetic 16 | 11 5 . Robot Hit Streak 8 | 4 5 8 Robot Miss Streak 3 | 3 2 3 Penetration Max . | . . . Secondary Targets 1 | . 1 . Max Gunslinging Chain 1 | . 1 . Shots Hit Robots 106 | 10 15 81 Core Hits 51 | 5 8 38 Critical Kills . | . . . Critical Parts Destroyed 2 | . . 2 Critical Strikes 2 | . . 2 Destroy 2 | . . 2 Melee Attacks . | . . . Impact . | . . . Slashing . | . . . Piercing . | . . . Sneak Attacks . | . . . Combat Hostiles . | . . . Follow-up Attacks . | . . . Damage Inflicted 1621 | 130 183 1308 Guns 1212 | 130 183 899 Cannons 409 | . . 409 Explosions . | . . . Melee . | . . . Ramming . | . . . Kinetic 683 | . . 683 Thermal 794 | 50 119 625 Explosive . | . . . Electromagnetic 144 | 80 64 . Impact . | . . . Slashing . | . . . Piercing . | . . . Highest Corruption . | . . . Average Corruption . | . . . Corruption Purged . | . . . Corruption Blocked . | . . . Overload Shots . | . . . Overflow Damage . | . . . Projectiles . | . . . Explosions . | . . . Melee . | . . . Knockbacks . | . . . Impact . | . . . Kinetic . | . . . Secondary . | . . . Self-Inflicted Damage . | . . . Shots . | . . . Rammed . | . . . Targets Rammed . | . . . Kicked . | . . . Crushed . | . . . Highest Temperature 234 | 132 234 201 Average Temperature 67 | 46 100 64 Received Heat Transfer 1029 | . 90 939 Effects 1 | . 1 . Energy Bleed 1 | . 1 . Siege Activations . | . . . Robots Corrupted . | . . . Combat Hostiles . | . . . Parts Fried . | . . . Impact Corruptions . | . . . Robots Melted . | . . . Combat Hostiles . | . . . Parts Melted . | . . . Heat Transferred 1733 | 148 334 1251 Parts Sabotaged . | . . . Parts Stolen . | . . . Parts Stripped . | . . . Power Chain Reactions . | . . . Alert | -11 -10 -9 ------- Run | Yrd Mat Mat Peak Influence 256 | 20 138 256 Initial 13 | . 13 . Average 82 | 5 46 100 Maximum Alert Level 1 | . . 1 Low Security (%) 96 | 100 100 94 Level 1 3 | . . 5 Level 2 . | . . . Level 3 . | . . . Level 4 . | . . . Level 5 . | . . . High Security . | . . . Max Security . | . . . Squads Dispatched 2 | . . 2 Investigation . | . . . Extermination . | . . . Reinforcement 2 | . . 2 Assault . | . . . Garrison . | . . . Intercept . | . . . Searches Triggered . | . . . Construction Impeded . | . . . Haulers Reinforced . | . . . Active Scanning Responses . | . . . Cargo Convoy Interrupts . | . . . Stealth | -11 -10 -9 --------- Run | Yrd Mat Mat Distress Signals 4 | . 1 3 Communications Jammed . | . . . Distress Signals . | . . . Times Spotted 39 | . 7 32 Peak Tracking Total 6 | . 6 4 Tactical Retreats 4 | . . 4 Traps | -11 -10 -9 ------- Run | Yrd Mat Mat Traps Triggered . | . . . Indirectly . | . . . Trap Hack Attempts . | . . . Triggered . | . . . Disarmed . | . . . Reprogrammed . | . . . Reused . | . . . Traps Extracted . | . . . Installed . | . . . Triggered . | . . . Machines | -11 -10 -9 ---------- Run | Yrd Mat Mat Machines Disabled . | . . . Max in Single Turn . | . . . Machines Repaired . | . . . Machines Dismantled . | . . . Machines Sabotaged . | . . . Overloaded Fab Kills . | . . . Hacking | -11 -10 -9 --------- Run | Yrd Mat Mat Machines Accessed 5 | . 1 4 Terminals 4 | . 1 3 Fabricators . | . . . Repair Stations . | . . . Recycling Units . | . . . Scanalyzers 1 | . . 1 Garrison Access . | . . . Total Hacks 10 | . 1 9 Successful 5 | . 1 4 Failed 5 | . . 5 Catastrophic . | . . . Database Lockouts . | . . . Manual . | . . . Terminals 6 | . 1 5 Fabricators . | . . . Repair Stations . | . . . Recycling Units . | . . . Scanalyzers 4 | . . 4 Garrison Access . | . . . Terminal Hacks 5 | . 1 4 Record 1 | . . 1 Alert Level 1 | . . 1 Locate Traps 1 | . 1 . Dispatch Records 1 | . . 1 Zone Layout 1 | . . 1 Fabricator Hacks . | . . . Repair Station Hacks . | . . . Recycling Unit Hacks . | . . . Scanalyzer . | . . . Garrison Access Hacks . | . . . Unauthorized Hacks . | . . . Terminals . | . . . Fabricators . | . . . Repair Stations . | . . . Recycling Units . | . . . Scanalyzers . | . . . Garrison Access . | . . . Data Cores Recovered 1 | . . 1 Used . | . . . Hacking Detections 3 | . 1 2 Full Trace Events 1 | . . 1 Feedback Events . | . . . Feedback Blocked . | . . . Robot Schematics Acquired . | . . . Robots Built . | . . . Authchips . | . . . Time . | . . . Total Robot Build Rating . | . . . Part Schematics Acquired . | . . . Parts Built . | . . . Authchips . | . . . Time . | . . . Total Part Build Rating . | . . . Parts Repaired . | . . . Time . | . . . Parts Recycled . | . . . Recycled Matter . | . . . Retrieved Matter . | . . . Retrieved Components . | . . . Parts Scanalyzed . | . . . Part Schematics Acquired . | . . . Parts Damaged . | . . . Bothacking | -11 -10 -9 ------------ Run | Yrd Mat Mat Used RIF Installer . | . . . Robots Hacked . | . . . Non-combat . | . . . Combat . | . . . Robot Hacks Applied . | . . . Relay Couplers Released . | . . . Fabnet Peak Effective % . | . . . Robots Rewired . | . . . Allies Hacked . | . . . Hacks Repelled . | . . . Allies | -11 -10 -9 -------- Run | Yrd Mat Mat Total Allies . | . . . Largest Group . | . . . Highest-Rated Group . | . . . Highest-Rated Ally . | . . . Total Orders . | . . . Ally Attacks . | . . . Total Damage . | . . . Kills . | . . . Allies Corrupted . | . . . Allies Melted . | . . . Intel | -11 -10 -9 ------- Run | Yrd Mat Mat Robot Analysis Total . | . . . Derelict Logs Recovered . | . . . Drone Launches . | . . . Drone Recoveries . | . . . Exploration | -11 -10 -9 ------------- Run | Yrd Mat Mat Turns Passed 1976 | 122 462 1392 Spaces Moved 709 | 60 230 419 Core 15 | 14 . 1 Treads . | . . . Legs 694 | 46 230 418 Wheels . | . . . Hover . | . . . Flight . | . . . Fastest Speed 50 | 50 120 120 Average Speed 202 | 123 180 225 Slowest Speed 1400 | 200 190 1400 Overloaded Moves . | . . . Propulsion Burnouts . | . . . Robots Hopped . | . . . Cave-ins Triggered . | . . . Exploration Rate (%) 25 | 3 38 36 Regions Visited 2 Branch Regions . Pre-discovered Areas . | . . . Known Exits Taken . | . . . Unknown Exits Taken 2 | 1 1 . Scrap Searched . | . . . Spaces Dug . | . . . Terrain Destroyed . | . . . Melee . | . . . Projectile . | . . . AOE . | . . . Terrain Rammed . | . . . Walls Destroyed . | . . . Machines Disabled . | . . . Actions | -11 -10 -9 --------- Run | Yrd Mat Mat Total 1091 | 86 258 747 Wait 207 | . . 207 Move 707 | 59 229 419 Hop . | . . . Pick Up 38 | 9 11 18 Fast Attach . | . . . Attach 23 | 7 1 15 Detach 1 | . . 1 Swap 8 | . 3 5 Drop 10 | . 4 6 Fire 97 | 11 10 76 Melee . | . . . Ram . | . . . Kick . | . . . Crush . | . . . Escape Stasis . | . . . Rewire . | . . . Trap . | . . . Miscellaneous . | . . . Route ------- -11/Scrapyard -10/Materials -9/Materials History --------- Turn | Location | Event 14 | -11/Scrapyard | Discovered new exit (range 15) 123 | -11/Scrapyard | Entered Materials 302 | -10/Materials | Build established: Mutant 494 | -10/Materials | Discovered new exit (range 11) 585 | -10/Materials | Entered another Materials area 585 | -9/Materials | Evolved 2 slots: Utility x2 820 | -9/Materials | Lost 3 parts (1p2w) 1919 | -9/Materials | Core integrity fell below 50% 1965 | -9/Materials | Core integrity fell below 20% 1977 | -9/Materials | Destroyed by G-34 Mercenary with Small Laser Last Messages --------------- >>Alert(Check) Current Alert Level: Low Security 01839_ O-16 Technician suffers critical hit (Destroy). 01839_ Destroyed Hover Unit. 01842_ O-16 Technician uses terminal to summon reinforcements. 01842_ ALERT: Hostiles spotted, dispatching reinforcements to Terminal M005. 01842_ O-16 Technician locks terminal. 01843_ C-30 ARC bursts open, deploying its payload. 01843_ G-47 Trooper unfolds itself. 01843_ G-34 Mercenary unfolds itself. 01875_ G-47 Trooper destroyed. 01879_ Hvy. Assault Rifle destroyed. 01879_ Ion Engine destroyed. 01916_ Core Shielding destroyed. 01923_ Titanium Leg destroyed. 01932_ Particle Cannon destroyed. 01957_ Titanium Leg destroyed. 01966_ Adv. Beam Cannon destroyed. [Achievement: Back For More] Map ----- +----------------------------------------------------+ | ????????????????????????????????????????????? | | ????????????????????????????????????????????? | | ????????????????????????????????????????????? | | ????????????????????????????????????????????? | | ????????????????????????????????????????????? | | ????????????????????????????????????????????? | | ????????????????????????????????????????????? | | ????????????????????????????????????????????? | | ????????????????????????????????????????????? | | ?????????????########???????????????????????? | | ????########?# #?????????? #?????????? | | ????# #?# """" #?????????? #?????????? | | ????# """ #?# """" #?????????? %"#?????????? | | ##### """ #?# """" #?????????? #?????????? | | !!!## """ #?# #?????????? #?????????? | | !# #?# """" #?????????? #?????????? | | # ] #?# """" #?????????? #?????????? | | #+######## """" #?????????# #?????????? | | # #?????????# #?????????? | | + """" #?????????# #?????????? | | # """" #?????????# #?????????? | | +########### # """" #?????????# #?????????? | | ##??????# # #????????## %*##????????? | | # ### ################# #????????? | | # !%! g #????????? | | ! # o*@ g T #????????? | | # #????????? | | "" # ##################### #????????? | | "" ## #????????????????????#######????????? | | "" ## ????????????????????????????????????? | | ##### ?????????????????????????????????????? | | ????# ??????????????????????????????????????? | | ???? ???????????????????????????????????????? | | ??? ????????????????????????????????????????? | | ?? ?????????????????????????????????????????? | | ????????????????????????????????????????????? | | ????????????????????????????????????????????? | | ????????????????????????????????????????????? | | ????????????????????????????????????????????? | | ????????????????????????????????????????????? | | ????????????????????????????????????????????? | | ????????????????????????????????????????????? | | ????????????????????????????????????????????? | | ????????????????????????????????????????????? | | ????????????????????????????????????????????? | | ????????????????????????????????????????????? | | ????????????????????????????????????????????? | | ????????????????????????????????????????????? | | ????????????????????????????????????????????? | | ????????????????????????????????????????????? | +----------------------------------------------------+ Best States ------------- Heat Dissipation 28 Energy Generation 10 Energy Capacity 250 Matter Stores 300 Matter Capacity 300 Sight Range 16 Terrain Scan Range 16 Terrain Scan Density 10 ECM Strength 1 Core Shielding 20 Evasion (%) 55 Targeting Accuracy 5 Item Schematics ----------------- None Robot Schematics ------------------ None Fabricated ------------ Nothing Alien Tech Used ----------------- None Achievements -------------- Back For More Challenges ------------ None Game ------ Seed PotentialScatterSuit Manual? 0 Play Time 00:18:43 Cumulative 8.3 hours Start 2024.12.17 @ 16:09:47 End 2024.12.17 @ 16:23:34 Sessions 1 Manual Loads 0 Difficulty Rogue Special Mode None Game No. 50 Rogue 50 Adventurer 0 Explorer 0 Win Type - Total 0 Types 0/0/0/0/0/0/0/0/0 Lore% 8 Gallery% 14 Achievement% 16 Wizard Run 0 Options --------- Layout 0 ASCII 0 Keyboard 0 Movement Mouse Keybinds 0 Fullscreen 1 Font 18/SmallcapsGlow Map View 38x25 Zoom Use 100% Tactical HUD 1 Map Filters NONE Filters NONE Steam 1 RUN: 1157c556-5cc0-462b-9a5c-d231fcd9023b